[Event "Late-Titled-Tuesday-Blitz-March-26-2024"]
[Site "Chess.com"]
[Date "2024.03.26"]
[Round "3"]
[White "GWR2024"]
[Black "Chesstiger64"]
[Result "1-0"]
[WhiteElo "2187"]
[BlackElo "2395"]
[TimeControl "180+1"]
[EndTime "14:30:21 PDT"]
[Termination "GWR2024 won by checkmate"]

1. e4 {[%clk 0:03:00.6]} 1... c6 {[%clk 0:02:59.8]} 2. Nf3 {[%clk 0:02:59.7]}
2... d5 {[%clk 0:03:00]} 3. exd5 {[%clk 0:03:00.6]} 3... cxd5 {[%clk 0:03:00.2]}
4. Ne5 {[%clk 0:03:01]} 4... Nc6 {[%clk 0:02:58.9]} 5. Bb5 {[%clk 0:03:00.4]}
5... Bd7 {[%clk 0:02:59.1]} 6. Nxd7 {[%clk 0:02:59.6]} 6... Qxd7 {[%clk
0:02:59]} 7. O-O {[%clk 0:03:00.5]} 7... a6 {[%clk 0:02:58.9]} 8. Be2 {[%clk
0:02:59.8]} 8... Nf6 {[%clk 0:02:57.7]} 9. d4 {[%clk 0:03:00.1]} 9... e6 {[%clk
0:02:58.1]} 10. c3 {[%clk 0:03:00]} 10... Bd6 {[%clk 0:02:58.7]} 11. Nd2 {[%clk
0:02:59.7]} 11... Qc7 {[%clk 0:02:58.6]} 12. Nf3 {[%clk 0:02:59.6]} 12... Ne4
{[%clk 0:02:58.8]} 13. Be3 {[%clk 0:02:53.2]} 13... f5 {[%clk 0:02:58.6]} 14.
Rc1 {[%clk 0:02:41.4]} 14... O-O {[%clk 0:02:54.9]} 15. Ng5 {[%clk 0:02:39.1]}
15... Nxg5 {[%clk 0:02:53.5]} 16. Bxg5 {[%clk 0:02:38]} 16... Bxh2+ {[%clk
0:02:53.8]} 17. Kh1 {[%clk 0:02:38.6]} 17... Bf4 {[%clk 0:02:54.4]} 18. Bxf4
{[%clk 0:02:31.9]} 18... Qxf4 {[%clk 0:02:55.3]} 19. g3 {[%clk 0:02:32]} 19...
Qh6+ {[%clk 0:02:50.9]} 20. Kg2 {[%clk 0:02:31.9]} 20... f4 {[%clk 0:02:51.3]}
21. Rh1 {[%clk 0:02:31.9]} 21... Qf6 {[%clk 0:02:50.9]} 22. g4 {[%clk
0:02:22.4]} 22... Ne7 {[%clk 0:02:38.4]} 23. Rh3 {[%clk 0:02:00]} 23... Ng6
{[%clk 0:02:32.4]} 24. Qh1 {[%clk 0:01:59.1]} 24... h6 {[%clk 0:02:31.6]} 25.
Bf3 {[%clk 0:01:57.6]} 25... b5 {[%clk 0:02:17.8]} 26. Re1 {[%clk 0:01:56.2]}
26... Rac8 {[%clk 0:02:14.7]} 27. Kf1 {[%clk 0:01:45.2]} 27... b4 {[%clk
0:02:14.4]} 28. c4 {[%clk 0:01:24.5]} 28... Rfd8 {[%clk 0:01:55.7]} 29. cxd5
{[%clk 0:01:23.9]} 29... exd5 {[%clk 0:01:53.8]} 30. Bxd5+ {[%clk 0:01:23.4]}
30... Kh7 {[%clk 0:01:53.5]} 31. Be4 {[%clk 0:01:17.2]} 31... Rxd4 {[%clk
0:01:48.8]} 32. Rh5 {[%clk 0:01:14.5]} 32... Rxe4 {[%clk 0:01:42.6]} 33. Qxe4
{[%clk 0:01:13.3]} 33... a5 {[%clk 0:01:25.6]} 34. g5 {[%clk 0:01:11.3]} 34...
Qa6+ {[%clk 0:01:08.7]} 35. Kg1 {[%clk 0:01:04.8]} 35... Rc5 {[%clk 0:01:01.9]}
36. Qh1 {[%clk 0:00:35.5]} 36... Qb5 {[%clk 0:00:56.9]} 37. Rxh6+ {[%clk
0:00:29.3]} 37... Kg8 {[%clk 0:00:56.2]} 38. Rxg6 {[%clk 0:00:26.3]} 38... Rxg5+
{[%clk 0:00:54.9]} 39. Rxg5 {[%clk 0:00:26.1]} 39... Qxg5+ {[%clk 0:00:55.4]}
40. Qg2 {[%clk 0:00:26.7]} 40... Qf6 {[%clk 0:00:49.7]} 41. Qf3 {[%clk
0:00:26.3]} 41... Qg5+ {[%clk 0:00:46.3]} 42. Qg2 {[%clk 0:00:26]} 42... Qf6
{[%clk 0:00:46.4]} 43. f3 {[%clk 0:00:26.5]} 43... Qd4+ {[%clk 0:00:44.1]} 44.
Qf2 {[%clk 0:00:25.7]} 44... Qd5 {[%clk 0:00:42.2]} 45. Qe2 {[%clk 0:00:25.5]}
45... Qg5+ {[%clk 0:00:41.9]} 46. Kf1 {[%clk 0:00:25.5]} 46... Qh4 {[%clk
0:00:30.3]} 47. Qe6+ {[%clk 0:00:24.7]} 47... Kh8 {[%clk 0:00:28.3]} 48. Qg4
{[%clk 0:00:24.3]} 48... Qh1+ {[%clk 0:00:23.4]} 49. Kf2 {[%clk 0:00:24.4]}
49... Qh2+ {[%clk 0:00:23.4]} 50. Qg2 {[%clk 0:00:24.7]} 50... Qh4+ {[%clk
0:00:23.5]} 51. Kf1 {[%clk 0:00:24.6]} 51... Qf6 {[%clk 0:00:20.4]} 52. Qg4
{[%clk 0:00:23.6]} 52... Qa6+ {[%clk 0:00:18.2]} 53. Kg2 {[%clk 0:00:23.2]}
53... Qf6 {[%clk 0:00:17.1]} 54. Re6 {[%clk 0:00:22.1]} 54... Qxb2+ {[%clk
0:00:15.9]} 55. Kh3 {[%clk 0:00:22.5]} 55... Qxa2 {[%clk 0:00:14]} 56. Re8+
{[%clk 0:00:21.8]} 56... Kh7 {[%clk 0:00:14.1]} 57. Qh5# {[%clk 0:00:21.9]} 1-0

[Event "Late-Titled-Tuesday-Blitz-March-26-2024"]
[Site "Chess.com"]
[Date "2024.03.26"]
[Round "3"]
[White "RandomNoob04"]
[Black "SuperJesus88"]
[Result "0-1"]
[WhiteElo "2664"]
[BlackElo "2479"]
[TimeControl "180+1"]
[EndTime "14:30:22 PDT"]
[Termination "SuperJesus88 won by resignation"]

1. e4 {[%clk 0:03:00.9]} 1... d6 {[%clk 0:02:59.4]} 2. d4 {[%clk 0:03:00.7]}
2... Nf6 {[%clk 0:03:00.1]} 3. Nc3 {[%clk 0:03:01.2]} 3... e5 {[%clk 0:03:00.6]}
4. Nf3 {[%clk 0:03:01]} 4... Nbd7 {[%clk 0:03:00.6]} 5. g4 {[%clk 0:03:01.8]}
5... Nxg4 {[%clk 0:02:55.3]} 6. Rg1 {[%clk 0:03:02.1]} 6... exd4 {[%clk
0:02:55.7]} 7. Nxd4 {[%clk 0:02:59.5]} 7... Nde5 {[%clk 0:02:55.5]} 8. Bf4
{[%clk 0:02:40.1]} 8... c6 {[%clk 0:02:36.1]} 9. Be2 {[%clk 0:02:38.3]} 9... Nf6
{[%clk 0:02:25.2]} 10. Qd2 {[%clk 0:02:35.3]} 10... Ng6 {[%clk 0:02:21.3]} 11.
Bg3 {[%clk 0:02:32.6]} 11... d5 {[%clk 0:02:17]} 12. e5 {[%clk 0:02:14.3]} 12...
Ne4 {[%clk 0:02:14]} 13. Nxe4 {[%clk 0:02:13.7]} 13... dxe4 {[%clk 0:02:14.9]}
14. O-O-O {[%clk 0:02:13.2]} 14... Bc5 {[%clk 0:02:01.4]} 15. Qe3 {[%clk
0:01:42.5]} 15... Qd5 {[%clk 0:01:57.4]} 16. c4 {[%clk 0:01:38.3]} 16... Bxd4
{[%clk 0:01:48.4]} 17. Rxd4 {[%clk 0:01:39.2]} 17... Qa5 {[%clk 0:01:46.8]} 18.
Kb1 {[%clk 0:01:35.1]} 18... Bf5 {[%clk 0:01:44.5]} 19. h4 {[%clk 0:01:29.9]}
19... Nf8 {[%clk 0:01:17.6]} 20. Rgd1 {[%clk 0:01:19.4]} 20... Ne6 {[%clk
0:01:15]} 21. Rd7 {[%clk 0:01:13.9]} 21... Nc5 {[%clk 0:00:57.8]} 22. R7d6
{[%clk 0:01:12.3]} 22... O-O {[%clk 0:00:54.9]} 23. h5 {[%clk 0:01:09.3]} 23...
h6 {[%clk 0:00:44]} 24. Bf4 {[%clk 0:00:58.7]} 24... Ne6 {[%clk 0:00:40.9]} 25.
Rg1 {[%clk 0:00:35.5]} 25... Kh7 {[%clk 0:00:34.4]} 26. Bg4 {[%clk 0:00:26.6]}
26... Bxg4 {[%clk 0:00:30.8]} 27. Qxe4+ {[%clk 0:00:26.7]} 27... f5 {[%clk
0:00:19]} 28. exf6+ {[%clk 0:00:26.7]} 28... Bf5 {[%clk 0:00:19]} 29. Rxe6
{[%clk 0:00:17.2]} 29... Bxe4+ {[%clk 0:00:18.1]} 30. Rxe4 {[%clk 0:00:18.1]}
30... Qf5 {[%clk 0:00:16.5]} 31. Rxg7+ {[%clk 0:00:18.3]} 31... Kh8 {[%clk
0:00:16.3]} 32. f3 {[%clk 0:00:19.1]} 32... Rae8 {[%clk 0:00:15.9]} 33. Re7
{[%clk 0:00:18.9]} 33... Rxe7 {[%clk 0:00:13.2]} 34. fxe7 {[%clk 0:00:19.8]}
34... Re8 {[%clk 0:00:13.6]} 35. Kc1 {[%clk 0:00:20.6]} 35... Qd7 {[%clk
0:00:12.5]} 36. Be5+ {[%clk 0:00:19.5]} 36... Kh7 {[%clk 0:00:12.2]} 37. Bf6
{[%clk 0:00:20]} 37... Qf5 {[%clk 0:00:11.7]} 38. Bc3 {[%clk 0:00:10.9]} 38...
Qxf3 {[%clk 0:00:10.6]} 39. Re5 {[%clk 0:00:11.4]} 39... Qf4+ {[%clk 0:00:09.4]}
40. Kc2 {[%clk 0:00:11.4]} 40... Qxe5 {[%clk 0:00:08.5]} 41. Bxe5 {[%clk
0:00:11.5]} 41... Rxe7 {[%clk 0:00:09.2]} 42. Bd4 {[%clk 0:00:11.2]} 42... b6
{[%clk 0:00:08.8]} 43. Kd3 {[%clk 0:00:11.8]} 43... c5 {[%clk 0:00:09.3]} 44.
Bc3 {[%clk 0:00:11.8]} 44... Kg8 {[%clk 0:00:09.8]} 45. b4 {[%clk 0:00:11.8]}
45... cxb4 {[%clk 0:00:08.5]} 46. Bxb4 {[%clk 0:00:12]} 46... Re5 {[%clk
0:00:09.1]} 47. Kd4 {[%clk 0:00:09.9]} 47... Rxh5 {[%clk 0:00:09.1]} 48. c5
{[%clk 0:00:10.8]} 48... bxc5+ {[%clk 0:00:09.5]} 49. Bxc5 {[%clk 0:00:11.7]}
49... Rxc5 {[%clk 0:00:09.3]} 50. Kxc5 {[%clk 0:00:12.6]} 50... Kf7 {[%clk
0:00:09.9]} 51. Kb5 {[%clk 0:00:12.4]} 51... h5 {[%clk 0:00:09.9]} 52. Ka6
{[%clk 0:00:13.3]} 52... h4 {[%clk 0:00:10.5]} 53. Kxa7 {[%clk 0:00:14.2]} 53...
h3 {[%clk 0:00:11.4]} 54. a4 {[%clk 0:00:15.1]} 54... h2 {[%clk 0:00:12.3]} 55.
a5 {[%clk 0:00:16]} 55... h1=Q {[%clk 0:00:13.2]} 56. a6 {[%clk 0:00:16.9]}
56... Qc6 {[%clk 0:00:13.2]} 0-1

[Event "Late-Titled-Tuesday-Blitz-March-26-2024"]
[Site "Chess.com"]
[Date "2024.03.26"]
[Round "3"]
[White "FairChess_on_YouTube"]
[Black "DanielDardha2005"]
[Result "0-1"]
[WhiteElo "3109"]
[BlackElo "2857"]
[TimeControl "180+1"]
[EndTime "14:30:26 PDT"]
[Termination "DanielDardha2005 won by resignation"]

1. c4 {[%clk 0:03:00.9]} 1... c6 {[%clk 0:02:59.8]} 2. Nf3 {[%clk 0:02:59.4]}
2... d5 {[%clk 0:03:00]} 3. d4 {[%clk 0:03:00.3]} 3... Nf6 {[%clk 0:03:00.2]} 4.
Qc2 {[%clk 0:03:00.7]} 4... a6 {[%clk 0:02:59.6]} 5. Nc3 {[%clk 0:02:54.7]} 5...
b5 {[%clk 0:02:51.5]} 6. e4 {[%clk 0:02:53.7]} 6... bxc4 {[%clk 0:02:46.9]} 7.
e5 {[%clk 0:02:53.8]} 7... Ng8 {[%clk 0:02:28.6]} 8. b3 {[%clk 0:02:53.7]} 8...
cxb3 {[%clk 0:02:27.8]} 9. axb3 {[%clk 0:02:54.5]} 9... e6 {[%clk 0:02:27.1]}
10. Bd3 {[%clk 0:02:49.4]} 10... h6 {[%clk 0:02:21.9]} 11. Na4 {[%clk
0:02:44.4]} 11... a5 {[%clk 0:02:16.7]} 12. O-O {[%clk 0:02:43.2]} 12... Ba6
{[%clk 0:02:13.9]} 13. Bxa6 {[%clk 0:02:34.5]} 13... Rxa6 {[%clk 0:02:14.8]} 14.
Nc5 {[%clk 0:02:27.8]} 14... Bxc5 {[%clk 0:02:13]} 15. Qxc5 {[%clk 0:02:28.7]}
15... Nd7 {[%clk 0:02:08.4]} 16. Qc3 {[%clk 0:02:13.2]} 16... Ne7 {[%clk
0:02:08.2]} 17. Ba3 {[%clk 0:02:11.3]} 17... O-O {[%clk 0:02:05.2]} 18. Rfc1
{[%clk 0:02:08]} 18... Re8 {[%clk 0:01:54.9]} 19. Ne1 {[%clk 0:02:07]} 19... Nf5
{[%clk 0:01:51.1]} 20. Nd3 {[%clk 0:02:06.8]} 20... Qh4 {[%clk 0:01:49.4]} 21.
Bc5 {[%clk 0:01:50.5]} 21... Nxc5 {[%clk 0:01:23.7]} 22. Nxc5 {[%clk 0:01:50.7]}
22... Nxd4 {[%clk 0:01:17.5]} 23. Qd3 {[%clk 0:01:47.6]} 23... Raa8 {[%clk
0:01:12.7]} 24. Ra4 {[%clk 0:01:44.9]} 24... Qg5 {[%clk 0:00:59.2]} 25. f4
{[%clk 0:01:44.7]} 25... Qxf4 {[%clk 0:00:59.2]} 26. Re1 {[%clk 0:01:41.6]}
26... Qh4 {[%clk 0:00:26.4]} 27. Rf1 {[%clk 0:01:40.8]} 27... Qe7 {[%clk
0:00:11.1]} 28. Qxd4 {[%clk 0:01:40.7]} 28... Reb8 {[%clk 0:00:11.7]} 29. h3
{[%clk 0:01:00]} 29... Rb5 {[%clk 0:00:09.8]} 30. Rc1 {[%clk 0:01:00.6]} 30...
Rab8 {[%clk 0:00:09]} 31. Kh2 {[%clk 0:00:57.6]} 31... Qa7 {[%clk 0:00:08.7]}
32. Nxe6 {[%clk 0:00:48.3]} 32... Qe7 {[%clk 0:00:07.7]} 33. Nc5 {[%clk
0:00:44.8]} 33... Rb4 {[%clk 0:00:08.1]} 34. Qe3 {[%clk 0:00:36.9]} 34... R8b5
{[%clk 0:00:05.8]} 35. Rxb4 {[%clk 0:00:32.6]} 35... Rxb4 {[%clk 0:00:05.8]} 36.
e6 {[%clk 0:00:30.4]} 36... fxe6 {[%clk 0:00:04.5]} 37. Nxe6 {[%clk 0:00:30.5]}
37... Qd6+ {[%clk 0:00:03.6]} 38. Kh1 {[%clk 0:00:25.9]} 38... Re4 {[%clk
0:00:03.7]} 39. Qd2 {[%clk 0:00:23.9]} 39... Qxe6 {[%clk 0:00:02.9]} 40. Qxa5
{[%clk 0:00:24.2]} 40... Re2 {[%clk 0:00:03.1]} 41. Qa8+ {[%clk 0:00:18.6]}
41... Kh7 {[%clk 0:00:03.4]} 42. Qa1 {[%clk 0:00:17.5]} 42... Qe4 {[%clk
0:00:03.1]} 43. Rg1 {[%clk 0:00:17.9]} 43... c5 {[%clk 0:00:03.3]} 44. Qc1
{[%clk 0:00:17.4]} 44... Re3 {[%clk 0:00:03.5]} 45. Kh2 {[%clk 0:00:16.3]} 45...
Qe5+ {[%clk 0:00:03.4]} 46. Kh1 {[%clk 0:00:16.5]} 46... d4 {[%clk 0:00:04.3]}
47. Qc2+ {[%clk 0:00:15.7]} 47... d3 {[%clk 0:00:04.6]} 48. Qd2 {[%clk
0:00:16.3]} 48... Qe4 {[%clk 0:00:05]} 49. Kh2 {[%clk 0:00:16.1]} 49... Qf4+
{[%clk 0:00:04.8]} 50. g3 {[%clk 0:00:16.1]} 50... Qe4 {[%clk 0:00:04.7]} 51.
Rg2 {[%clk 0:00:11.7]} 51... Re2 {[%clk 0:00:05.3]} 52. Rxe2 {[%clk 0:00:12.3]}
52... Qxe2+ {[%clk 0:00:06.1]} 53. Qxe2 {[%clk 0:00:12.2]} 53... dxe2 {[%clk
0:00:07]} 0-1

[Event "Late-Titled-Tuesday-Blitz-March-26-2024"]
[Site "Chess.com"]
[Date "2024.03.26"]
[Round "3"]
[White "Der_Balak_3Halak"]
[Black "RantomOpening"]
[Result "1-0"]
[WhiteElo "2424"]
[BlackElo "2594"]
[TimeControl "180+1"]
[EndTime "14:30:27 PDT"]
[Termination "Der_Balak_3Halak won by resignation"]

1. e4 {[%clk 0:03:00]} 1... d6 {[%clk 0:02:51.8]} 2. Nf3 {[%clk 0:03:00.1]} 2...
e5 {[%clk 0:02:49.1]} 3. c3 {[%clk 0:02:58.8]} 3... Nf6 {[%clk 0:02:48.9]} 4. h3
{[%clk 0:02:56.8]} 4... Nbd7 {[%clk 0:02:43.6]} 5. Bd3 {[%clk 0:02:55.1]} 5...
Nc5 {[%clk 0:02:42.3]} 6. Bc2 {[%clk 0:02:54.3]} 6... Ncxe4 {[%clk 0:02:41.2]}
7. Bxe4 {[%clk 0:02:55.2]} 7... d5 {[%clk 0:02:36.2]} 8. Bc2 {[%clk 0:02:52.2]}
8... e4 {[%clk 0:02:35.6]} 9. Nd4 {[%clk 0:02:51.4]} 9... Bd6 {[%clk 0:02:35.8]}
10. d3 {[%clk 0:02:49.9]} 10... O-O {[%clk 0:02:34.1]} 11. Bg5 {[%clk
0:02:46.9]} 11... h6 {[%clk 0:02:33]} 12. Be3 {[%clk 0:02:24.6]} 12... c5 {[%clk
0:02:29.1]} 13. Nb5 {[%clk 0:02:22.6]} 13... exd3 {[%clk 0:02:27.5]} 14. Bxd3
{[%clk 0:02:19.5]} 14... Be7 {[%clk 0:02:27.5]} 15. O-O {[%clk 0:02:15.8]} 15...
a6 {[%clk 0:02:26.4]} 16. N5a3 {[%clk 0:02:14.9]} 16... Be6 {[%clk 0:02:24.4]}
17. Nd2 {[%clk 0:02:05]} 17... d4 {[%clk 0:02:21.4]} 18. cxd4 {[%clk 0:02:03.6]}
18... cxd4 {[%clk 0:02:22.3]} 19. Bf4 {[%clk 0:02:03.7]} 19... Nd5 {[%clk
0:02:22.4]} 20. Be5 {[%clk 0:02:00.6]} 20... Nb4 {[%clk 0:02:20.2]} 21. Bc4
{[%clk 0:01:47.1]} 21... Bf5 {[%clk 0:02:13.4]} 22. Nf3 {[%clk 0:01:40.4]} 22...
d3 {[%clk 0:01:59.5]} 23. Qd2 {[%clk 0:01:38]} 23... b5 {[%clk 0:01:56]} 24. Bb3
{[%clk 0:01:37.9]} 24... Qd7 {[%clk 0:01:51.2]} 25. Nd4 {[%clk 0:01:36.4]} 25...
Bg6 {[%clk 0:01:51]} 26. Nf3 {[%clk 0:01:19.6]} 26... Rfd8 {[%clk 0:01:45]} 27.
Rac1 {[%clk 0:01:19.3]} 27... Be4 {[%clk 0:01:38.6]} 28. Rc7 {[%clk 0:01:16]}
28... Qe8 {[%clk 0:01:35.9]} 29. Qf4 {[%clk 0:01:07.5]} 29... Bd5 {[%clk
0:01:31.6]} 30. Qg4 {[%clk 0:01:01.1]} 30... f6 {[%clk 0:01:24.9]} 31. Bc3
{[%clk 0:00:54.2]} 31... h5 {[%clk 0:01:10.8]} 32. Qf5 {[%clk 0:00:29.6]} 32...
Bxb3 {[%clk 0:00:57]} 33. Bxb4 {[%clk 0:00:28.6]} 33... g6 {[%clk 0:00:33.7]}
34. Rxe7 {[%clk 0:00:14.2]} 34... gxf5 {[%clk 0:00:27.2]} 35. Rxe8+ {[%clk
0:00:14.5]} 35... Rxe8 {[%clk 0:00:28.1]} 36. axb3 {[%clk 0:00:15.3]} 36... a5
{[%clk 0:00:29]} 37. Bd6 {[%clk 0:00:13.4]} 37... Rad8 {[%clk 0:00:28.8]} 38.
Nxb5 {[%clk 0:00:13.5]} 38... Re2 {[%clk 0:00:26.6]} 39. Rd1 {[%clk 0:00:13.4]}
39... Rxb2 {[%clk 0:00:26.6]} 40. Rxd3 {[%clk 0:00:13.9]} 40... Rb1+ {[%clk
0:00:26.8]} 41. Kh2 {[%clk 0:00:14.1]} 41... Rc1 {[%clk 0:00:23.4]} 42. Nfd4
{[%clk 0:00:14.2]} 42... f4 {[%clk 0:00:19.4]} 43. Bxf4 {[%clk 0:00:12.9]} 43...
Re8 {[%clk 0:00:19.7]} 44. Rg3+ {[%clk 0:00:12.8]} 44... Kf7 {[%clk 0:00:19.7]}
45. Nd6+ {[%clk 0:00:13.2]} 45... Kf8 {[%clk 0:00:19.5]} 46. Bh6+ {[%clk
0:00:13]} 46... Ke7 {[%clk 0:00:19.2]} 47. N4f5+ {[%clk 0:00:13.9]} 47... Kd7
{[%clk 0:00:18.8]} 48. Rg7+ {[%clk 0:00:14.5]} 48... Kd8 {[%clk 0:00:18.4]} 49.
Nxe8 {[%clk 0:00:14.9]} 49... Kxe8 {[%clk 0:00:19.3]} 50. Re7+ {[%clk
0:00:15.1]} 50... Kd8 {[%clk 0:00:19.5]} 51. Bf4 {[%clk 0:00:15.4]} 51... Rd1
{[%clk 0:00:18.3]} 52. Bc7+ {[%clk 0:00:15]} 52... Kc8 {[%clk 0:00:18.5]} 53.
Nd6+ {[%clk 0:00:15.2]} 53... Rxd6 {[%clk 0:00:19.4]} 54. Bxd6 {[%clk
0:00:15.4]} 1-0

[Event "Late-Titled-Tuesday-Blitz-March-26-2024"]
[Site "Chess.com"]
[Date "2024.03.26"]
[Round "3"]
[White "BillieKimbah"]
[Black "Savagelittlemole"]
[Result "1-0"]
[WhiteElo "2955"]
[BlackElo "2519"]
[TimeControl "180+1"]
[EndTime "14:30:28 PDT"]
[Termination "BillieKimbah won on time"]

1. Nf3 {[%clk 0:03:00.7]} 1... Nf6 {[%clk 0:03:00.2]} 2. c4 {[%clk 0:02:59.9]}
2... c5 {[%clk 0:03:00]} 3. b3 {[%clk 0:02:57.1]} 3... Nc6 {[%clk 0:03:00.2]} 4.
Bb2 {[%clk 0:02:57.2]} 4... g6 {[%clk 0:03:00.4]} 5. g3 {[%clk 0:02:57.2]} 5...
Bg7 {[%clk 0:03:01]} 6. Bg2 {[%clk 0:02:57.8]} 6... O-O {[%clk 0:03:01.5]} 7.
O-O {[%clk 0:02:58.5]} 7... d5 {[%clk 0:02:59.9]} 8. cxd5 {[%clk 0:02:57.7]}
8... Nxd5 {[%clk 0:03:00.8]} 9. Bxg7 {[%clk 0:02:58.2]} 9... Kxg7 {[%clk
0:03:01.7]} 10. d4 {[%clk 0:02:58.4]} 10... cxd4 {[%clk 0:02:55.5]} 11. Nxd4
{[%clk 0:02:59.3]} 11... Nxd4 {[%clk 0:02:46.8]} 12. Qxd4+ {[%clk 0:03:00.2]}
12... Nf6 {[%clk 0:02:47.4]} 13. Qe5 {[%clk 0:02:58.7]} 13... Qb6 {[%clk
0:02:38.4]} 14. Nc3 {[%clk 0:02:53.1]} 14... Be6 {[%clk 0:02:35.9]} 15. Na4
{[%clk 0:02:51.2]} 15... Qb4 {[%clk 0:02:33.8]} 16. a3 {[%clk 0:02:37.5]} 16...
Qxb3 {[%clk 0:02:27]} 17. Nc5 {[%clk 0:02:37.3]} 17... Qb6 {[%clk 0:02:26.9]}
18. Rab1 {[%clk 0:02:35.4]} 18... Qd6 {[%clk 0:02:25.3]} 19. Qxd6 {[%clk
0:02:30.9]} 19... exd6 {[%clk 0:02:26.2]} 20. Nxe6+ {[%clk 0:02:31]} 20... fxe6
{[%clk 0:02:27.1]} 21. Rxb7+ {[%clk 0:02:31.5]} 21... Kh6 {[%clk 0:02:25.2]} 22.
Re7 {[%clk 0:02:20.1]} 22... Rae8 {[%clk 0:02:16.2]} 23. Rxa7 {[%clk 0:02:20]}
23... d5 {[%clk 0:02:16.7]} 24. a4 {[%clk 0:02:09.2]} 24... Ra8 {[%clk
0:02:10.6]} 25. Rxa8 {[%clk 0:02:08.1]} 25... Rxa8 {[%clk 0:02:10.1]} 26. Ra1
{[%clk 0:02:08.7]} 26... Ra5 {[%clk 0:02:09.6]} 27. e3 {[%clk 0:02:08.6]} 27...
Kg7 {[%clk 0:01:51.9]} 28. Ra3 {[%clk 0:01:52.7]} 28... Kf7 {[%clk 0:01:51]} 29.
Bf1 {[%clk 0:01:52.5]} 29... Ne4 {[%clk 0:01:50.4]} 30. Bb5 {[%clk 0:01:49.1]}
30... Ke7 {[%clk 0:01:48.6]} 31. f3 {[%clk 0:01:41.4]} 31... Nc5 {[%clk
0:01:31.7]} 32. Kf2 {[%clk 0:01:38.6]} 32... Kd6 {[%clk 0:01:31.6]} 33. h4
{[%clk 0:01:34.8]} 33... h6 {[%clk 0:01:30.9]} 34. g4 {[%clk 0:01:35]} 34... g5
{[%clk 0:01:29.2]} 35. Kg3 {[%clk 0:01:31.3]} 35... e5 {[%clk 0:01:28.4]} 36. f4
{[%clk 0:01:21.3]} 36... exf4+ {[%clk 0:01:23.3]} 37. exf4 {[%clk 0:01:22.2]}
37... Ne4+ {[%clk 0:01:23.1]} 38. Kf3 {[%clk 0:01:21.2]} 38... gxh4 {[%clk
0:01:20.5]} 39. Bd3 {[%clk 0:01:08.7]} 39... Nc5 {[%clk 0:01:14.5]} 40. Bc2
{[%clk 0:01:06.4]} 40... Ne6 {[%clk 0:01:09.7]} 41. Bd1 {[%clk 0:01:03.5]} 41...
h3 {[%clk 0:00:55.2]} 42. Ra2 {[%clk 0:00:55.7]} 42... Ra8 {[%clk 0:00:41.1]}
43. Kg3 {[%clk 0:00:53.4]} 43... Rf8 {[%clk 0:00:35.9]} 44. a5 {[%clk
0:00:45.9]} 44... Nxf4 {[%clk 0:00:31.4]} 45. a6 {[%clk 0:00:43.9]} 45... Ne6
{[%clk 0:00:31.1]} 46. a7 {[%clk 0:00:39.4]} 46... Nc7 {[%clk 0:00:30.6]} 47.
Kxh3 {[%clk 0:00:34.5]} 47... Kc6 {[%clk 0:00:25.6]} 48. Kh4 {[%clk 0:00:32]}
48... Kb7 {[%clk 0:00:20.6]} 49. Kh5 {[%clk 0:00:32.3]} 49... Rg8 {[%clk
0:00:20.9]} 50. Kxh6 {[%clk 0:00:30]} 50... Nb5 {[%clk 0:00:15.7]} 51. Rb2
{[%clk 0:00:27.2]} 51... Kc6 {[%clk 0:00:02.8]} 52. Ba4 {[%clk 0:00:25.2]} 1-0